bitfinex-derivatives/quotes_BNBF0:USTF0_20250425
["timestamp","ask_amount","ask_price","bid_price","bid_amount"]
[1745571071102,1.18963378,610.09,609.09,0.30123085]
[1745571071302,1.18963378,610.09,609.08,0.30123085]
[1745571071502,1.18963378,610.08,609.09,0.30123085]
[1745571071702,1.18963378,610.08,609.07,1.0370646]
[1745571071703,1.18963378,610.08,609.08,0.30123085]
[1745571071902,1.18963378,610.08,609.09,0.30123085]
[1745571072102,1.18963378,610.08,609.08,0.30123085]
[1745571072298,1.18963378,610.08,609.07,1.0370646]
[1745571072603,1.18963378,610.08,609.03,0.28549044]
[1745571072604,1.18963378,610.08,609.09,1.0370646]
[1745571072804,1.18963378,610.07,609.1,0.30122913]
[1745571073105,1.18963378,610.06,609.1,0.30122913]
[1745571073399,1.18963378,610.05,609.1,0.30122913]
[1745571073705,1.18963378,610.04,609.28,1.0370646]
[1745571074205,1.18963378,610.03,609.28,1.0370646]
[1745571074500,1.18963378,610.03,609.29,0.30122966]
[1745571074701,1.18963378,610.02,609.29,0.30122966]
[1745571075300,1.18963378,610.02,609.24,1.0370646]
[1745571075504,1.18963378,610.02,609.25,0.30122881]
[1745571075700,1.18963378,610.01,609.25,0.30122881]
[1745571076606,1.18963378,610.0,609.25,0.30122881]
[1745571076806,1.18963378,610.0,609.24,1.0370646]
[1745571077007,1.18963378,609.99,609.25,0.30123024]
[1745571077307,1.18963378,609.99,609.3,1.0370646]
[1745571077502,1.18963378,609.99,609.31,0.30123024]
[1745571078005,1.18963378,609.98,609.31,0.30123024]
[1745571078206,1.18963378,609.97,609.31,0.30123024]
[1745571078809,1.18963378,609.96,609.3,1.0370646]
[1745571079304,0.2854963,610.66,609.3,1.0370646]
[1745571079305,1.18963378,609.95,609.3,1.0370646]
[1745571079611,1.18963378,609.94,609.3,1.0370646]
[1745571079912,1.18963378,609.93,609.3,1.0370646]
[1745571080404,1.18963378,609.92,609.3,1.0370646]
[1745571080909,1.18963378,609.91,609.3,1.0370646]
[1745571081308,1.18963378,609.91,609.23,1.0370646]
[1745571081510,1.18963378,609.9,609.23,1.0370646]
[1745571082411,1.18963378,609.89,609.23,1.0370646]
[1745571082807,1.18963378,609.88,609.23,1.0370646]
[1745571083309,0.2854963,610.66,609.23,1.0370646]
[1745571083310,1.18963378,609.87,609.23,1.0370646]
[1745571084310,1.18963378,609.86,609.23,1.0370646]
[1745571084712,1.18963378,609.85,609.23,1.0370646]
[1745571085415,0.2854963,610.66,609.23,1.0370646]
[1745571085416,1.18963378,609.84,609.23,1.0370646]
[1745571086012,1.18963378,609.83,609.23,1.0370646]
[1745571086208,1.18963378,609.82,609.23,1.0370646]
[1745571087012,1.18963378,609.81,609.23,1.0370646]
[1745571087707,1.18963378,609.8,609.23,1.0370646]
[1745571088515,1.18963378,609.79,609.23,1.0370646]
[1745571088911,1.18963378,609.78,609.23,1.0370646]
[1745571089312,1.18963378,609.77,609.23,1.0370646]
[1745571089817,1.18963378,609.76,609.23,1.0370646]
[1745571090618,1.18963378,609.75,609.23,1.0370646]
[1745571090918,1.18963378,609.74,609.23,1.0370646]
[1745571091321,1.18963378,609.73,609.23,1.0370646]
[1745571091817,1.18963378,609.72,609.23,1.0370646]
[1745571092019,1.18963378,609.72,609.24,0.30123558]
[1745571092219,1.18963378,609.72,609.23,1.0370646]
[1745571092517,1.18963378,609.71,609.23,1.0370646]
[1745571094220,1.18963378,609.71,609.04,0.2854963]
[1745571094419,1.18963378,609.7,609.05,0.30124155]
[1745571095120,1.18963378,609.7,609.04,0.28556306]
[1745571095319,1.18963378,609.69,609.05,0.30124155]
[1745571096326,1.18963378,609.68,609.05,0.30124155]
[1745571097730,1.18963378,609.67,609.05,0.30124155]
[1745571097928,1.18963378,609.66,608.51,1.098]
[1745571098129,1.18963378,609.66,609.04,0.28556541]
[1745571098425,1.18963378,609.65,609.05,0.30124155]
[1745571098624,1.18963378,609.65,609.04,0.28562869]
[1745571098829,1.18963378,609.65,609.05,0.30123634]
[1745571099229,1.18963378,609.64,609.05,0.30123634]
[1745571099729,1.18963378,609.63,609.05,0.30123634]
[1745571100226,1.18963378,609.63,609.04,0.28562869]
[1745571100528,1.18963378,609.62,609.05,0.30123524]
[1745571100729,1.18963378,609.61,609.05,0.30123524]
[1745571101130,1.18963378,609.6,608.52,0.30123524]
[1745571101329,1.18963378,609.6,609.04,0.28557361]
[1745571101529,1.18963378,609.6,609.05,0.30123524]
[1745571101730,1.18963378,609.59,608.51,1.098]
[1745571101925,1.18963378,609.59,608.52,0.30123232]
[1745571102426,1.18963378,609.59,608.53,0.28563807]
[1745571102630,1.18963378,609.58,608.54,0.30123232]
[1745571103130,1.18963378,609.57,608.54,0.30123232]
[1745571103330,1.18963378,609.57,608.55,0.30123258]
[1745571103530,1.18963378,609.57,608.54,0.30123258]
[1745571103732,1.18963378,609.56,608.56,0.30123258]
[1745571103931,1.18963378,609.55,608.51,1.098]
[1745571104131,1.18963378,609.55,608.53,0.28563807]
[1745571104532,1.18963378,609.54,608.53,0.28563807]
[1745571104732,1.18963378,609.54,608.54,0.30123471]
[1745571105328,1.18963378,609.54,608.55,0.30124623]
[1745571105527,1.18963378,609.53,608.54,0.30124623]
[1745571105732,1.18963378,609.53,608.55,0.30124623]
[1745571105931,1.18963378,609.53,608.54,0.30124623]
[1745571106131,1.18963378,609.52,608.55,0.30124623]
[1745571106328,1.18963378,609.52,608.54,0.30124623]
[1745571106531,1.18963378,609.52,608.53,0.28563807]
[1745571106734,1.18963378,609.52,608.54,0.30123499]
[1745571107033,1.18963378,609.51,608.54,0.30123499]
[1745571107232,1.18963378,609.5,608.55,0.30123499]
[1745571107434,1.18963378,609.5,608.56,0.30123499]
[1745571107632,1.18963378,609.5,608.57,0.30123499]
[1745571107930,1.18963378,609.49,608.53,0.28564393]
[1745571108132,1.18963378,609.49,608.54,0.30123793]
[1745571108532,1.18963378,609.48,608.54,0.30123793]
[1745571108935,1.18963378,609.47,608.54,0.30123793]
[1745571109431,1.18963378,609.47,608.53,0.28564393]
[1745571109634,1.18963378,609.46,608.54,0.30123821]
[1745571110134,0.60297604,617.94,608.55,0.30123821]
[1745571110333,1.19166238,617.93,608.53,0.28565096]
[1745571110632,1.19166238,617.93,608.54,0.30123821]
[1745571110832,1.19166238,617.92,608.54,0.30123821]
[1745571111036,1.19166238,617.92,608.55,0.30123815]
[1745571111234,1.19166238,617.92,608.56,0.30123815]
[1745571111432,1.47632496,617.91,608.54,0.30123815]
[1745571111637,1.47632496,617.91,608.55,0.30123815]
[1745571111936,1.47632496,617.91,608.56,0.30123815]
[1745571112134,1.47632496,617.91,608.54,0.30123815]
[1745571112334,1.19166238,617.9,608.55,0.30123815]
[1745571112532,1.19166238,617.9,608.56,0.30123815]
[1745571112732,1.19166238,617.9,608.53,0.28565096]
[1745571112733,1.19166238,617.89,608.54,0.30123815]
[1745571112933,1.19166238,617.89,608.55,0.30123815]
[1745571113236,1.19166238,617.88,608.56,0.30123815]
[1745571113536,1.19166238,617.88,608.57,0.30123815]
[1745571113732,1.19166238,617.88,608.58,0.30123815]
[1745571113932,1.19166238,617.87,608.54,0.30123815]
[1745571114137,1.19166238,617.87,608.55,0.30123815]
[1745571114335,1.19166238,617.87,608.56,0.30123815]
[1745571114534,1.19166238,617.87,608.57,0.30123815]
[1745571114739,1.19166238,617.86,608.58,0.30123815]
[1745571114934,1.19166238,617.86,608.59,0.30123815]
[1745571115238,1.19166238,617.86,608.6,0.30123815]
[1745571115438,1.19166238,617.85,608.61,0.30123815]
[1745571115637,1.19166238,617.85,608.54,0.30123815]
[1745571115939,1.19166238,617.84,608.55,0.30123815]
[1745571116135,1.47633311,617.84,608.56,0.30123815]
[1745571116335,1.47633311,617.84,608.57,0.30123815]
[1745571116535,1.19166238,617.83,608.58,0.30123815]
[1745571116739,1.19166238,617.83,608.59,0.30123815]
[1745571116937,1.19166238,617.82,608.55,1.211]
[1745571117238,1.19166238,617.82,608.56,0.30123451]
[1745571117436,1.19166238,617.82,608.57,0.30123451]
[1745571117640,1.19166238,617.81,608.58,0.30123451]
[1745571117938,1.19166238,617.8,608.59,0.30123451]
[1745571118140,1.19166238,617.8,608.6,0.30123451]
[1745571118337,1.19166238,617.8,608.61,0.30123451]
[1745571118541,1.19166238,617.8,608.62,0.30123451]
[1745571118842,1.19166238,617.8,608.63,0.30123451]
[1745571119041,1.19166238,617.8,608.56,0.30123451]
[1745571119342,1.47637619,617.79,608.57,0.58594832]
[1745571119542,1.47637619,617.79,608.58,0.30123451]
[1745571119942,1.19166238,617.78,608.58,0.30123451]
[1745571120340,1.19166238,617.78,608.59,0.30123451]
[1745571120540,1.19166238,617.78,608.6,0.30123451]
[1745571120740,1.19166238,617.77,608.61,0.30123451]
[1745571121041,1.19166238,617.77,608.62,0.30123451]
[1745571121240,1.19166238,617.77,608.63,0.30123451]
[1745571121444,1.19166238,617.76,608.64,0.30123451]
[1745571121642,1.19166238,617.76,608.58,0.30123451]
[1745571121842,1.19166238,617.76,608.59,0.30123451]
[1745571122042,0.28468586,617.75,608.6,0.30123451]
[1745571122242,1.47634824,617.75,608.58,0.30123451]
[1745571122445,1.47634824,617.75,608.59,0.30125212]
[1745571122646,1.47634824,617.75,608.58,0.30125212]
[1745571122943,1.47634824,617.75,608.59,0.30125212]
[1745571123145,1.47634824,617.75,608.6,0.30125212]
[1745571123346,1.19166238,617.74,608.58,0.30125212]
[1745571123641,1.19166238,617.73,608.59,0.30125212]
[1745571123843,1.19166238,617.73,608.6,0.30125212]
[1745571124047,1.19166238,617.73,608.58,0.30125212]
[1745571124343,1.19166238,617.72,608.61,1.42]
[1745571124544,1.19166238,617.72,608.62,0.30125212]
[1745571124943,1.19166238,617.71,608.62,0.30125212]
[1745571125345,1.19166238,617.7,608.62,0.30125212]
[1745571125846,1.19166238,617.69,608.63,0.30125212]
[1745571126046,1.19166238,617.69,608.64,0.30125212]
[1745571126344,1.19166238,617.68,608.64,0.30125212]
[1745571126544,1.19166238,617.67,608.64,0.30125212]
[1745571127048,1.19166238,617.66,608.64,0.30125212]
[1745571127947,1.19166238,617.65,608.64,0.30125212]
[1745571128146,1.4763529,617.65,608.64,0.30125212]
[1745571128647,1.19166238,617.64,608.64,0.30125212]
[1745571129152,1.19166238,617.63,608.64,0.30125212]
[1745571129749,1.19166238,617.62,608.63,0.913]
[1745571129953,1.19166238,617.62,608.64,0.30125315]
[1745571130255,1.19166238,617.61,608.65,0.30125315]
[1745571130455,1.19166238,617.61,608.66,0.30125315]
[1745571130755,1.19166238,617.61,608.64,0.30125315]
[1745571131052,1.19166238,617.61,608.65,0.30125315]
[1745571131251,1.19166238,617.6,608.66,0.30125315]
[1745571131456,1.19166238,617.6,608.63,0.913]
[1745571131653,1.19166238,617.59,608.64,0.30125201]
[1745571132359,1.19166238,617.58,608.64,0.30125201]
[1745571132853,1.19166238,617.57,608.64,0.30125201]
[1745571133354,1.19166238,617.56,608.65,0.30125201]
[1745571133554,1.19166238,617.56,608.64,0.30125201]
[1745571133754,1.19166238,617.56,608.65,0.30125201]
[1745571133954,1.19166238,617.56,608.64,0.30125201]
[1745571134154,1.19166238,617.56,608.63,0.913]
[1745571134155,1.47635989,617.55,608.65,0.30125201]
[1745571134354,1.47635989,617.55,608.64,0.30125201]
[1745571134654,1.47635989,617.55,608.65,0.30125201]
[1745571134853,1.19166238,617.54,608.66,0.30125201]
[1745571135057,1.19166238,617.54,608.64,0.30125201]
[1745571135255,1.19166238,617.54,608.63,0.913]
[1745571135256,1.19166238,617.54,608.66,0.931]
[1745571135554,1.19166238,617.53,608.67,0.30125201]
[1745571135853,1.19166238,617.53,608.66,0.931]
[1745571136055,1.19166238,617.53,608.67,0.30124358]
[1745571136254,1.19166238,617.52,608.67,0.30124358]
[1745571137057,1.19166238,617.51,608.67,0.30124358]
[1745571137258,1.19166238,617.5,608.67,0.30124358]
[1745571137553,1.19166238,617.5,608.68,0.30124407]
[1745571137755,1.19166238,617.5,608.67,0.30124407]
[1745571138057,1.19166238,617.49,608.68,0.30124407]
[1745571138254,1.19166238,617.49,608.67,0.30124407]
[1745571138452,1.19166238,617.49,608.68,0.30124407]
[1745571138657,1.19166238,617.49,608.69,0.30124407]
[1745571138857,1.19166238,617.49,608.66,0.931]
[1745571139157,1.19166238,617.48,608.67,0.30124291]
[1745571139355,1.19166238,617.48,608.68,0.30124291]
[1745571139556,1.19166238,617.48,608.69,0.30124291]
[1745571139859,1.19166238,617.48,608.7,0.30124291]
[1745571140057,1.47636105,617.47,608.67,0.30124291]
[1745571140255,1.47636105,617.47,608.68,0.30124291]
[1745571140460,1.19166238,617.46,608.69,0.30124135]
[1745571140661,1.19166238,617.46,608.7,0.30124135]
[1745571140958,1.19166238,617.46,608.71,0.30124135]
[1745571141156,1.19166238,617.45,608.72,0.30124135]
[1745571141355,1.19166238,617.45,608.72,0.952]
[1745571141560,1.19166238,617.44,608.73,0.30124135]
[1745571142055,1.19166238,617.43,608.74,0.30124179]
[1745571142259,1.19166238,617.43,608.73,0.30124179]
[1745571142461,1.19166238,617.43,608.74,0.30124179]
[1745571142658,1.19166238,617.43,608.73,0.30124179]
[1745571142860,1.19166238,617.42,608.74,0.30124179]
[1745571143162,1.47635989,617.42,608.75,0.30124179]
[1745571143363,1.47635989,617.42,608.72,0.952]
[1745571143558,1.19166238,617.41,608.73,0.30124125]
[1745571144564,1.19166238,617.4,608.73,0.30124125]
[1745571144962,1.19166238,617.39,608.72,0.952]
[1745571145165,1.19166238,617.39,608.73,0.3012411]
[1745571145666,1.19166238,617.38,608.73,0.3012411]
[1745571146267,0.28470333,617.37,608.73,0.3012411]
[1745571146463,0.28470333,617.37,608.74,1.432]
[1745571146764,1.19166238,617.36,608.75,0.30124119]
[1745571147464,1.19166238,617.35,608.75,0.30124119]
[1745571147964,1.19166238,617.35,608.74,1.432]
[1745571148165,1.19166238,617.34,608.75,0.30124075]
[1745571148563,1.19166238,617.33,608.75,0.30124075]
[1745571148769,1.19166238,617.32,608.75,0.30124075]
[1745571149170,0.28470799,617.31,608.76,0.953]
[1745571149370,1.19166238,617.3,608.77,0.30124075]
[1745571150070,1.19166238,617.29,608.77,0.30124075]
[1745571150370,1.19166238,617.28,608.76,0.953]
[1745571150867,1.19166238,617.27,608.76,0.953]
[1745571151067,1.19166238,617.27,608.77,0.30123866]
[1745571151269,1.19166238,617.26,608.77,0.30123866]
[1745571151867,1.19166238,617.26,608.76,0.953]
[1745571152068,1.19166238,617.25,608.77,0.30123853]
[1745571152568,1.19166238,617.24,608.77,0.30123853]
[1745571152871,1.19166238,617.24,608.78,0.30123222]
[1745571153169,1.19166238,617.23,608.79,0.30123222]
[1745571153367,1.19166238,617.23,608.8,0.30123222]
[1745571153571,1.19166238,617.23,608.77,0.30123222]
[1745571153767,1.19166238,617.23,608.78,0.30123222]
[1745571153970,1.19166238,617.22,608.77,0.30123222]
[1745571154270,1.19166238,617.22,608.76,0.953]
[1745571154475,1.19166238,617.22,609.13,1.04222854]
[1745571154476,2.13310576,611.71,609.13,1.04222854]
[1745571154775,2.13310576,611.71,609.14,0.30123111]
[1745571155174,0.28531723,611.7,609.14,0.30123111]
[1745571155974,0.28531723,611.7,609.13,1.04222854]
[1745571156470,0.28531723,611.7,608.86,0.28531723]
[1745571156471,2.13310576,610.62,608.86,0.28531723]
[1745571156672,2.13310576,610.62,608.87,0.30123136]
[1745571157270,1.19166238,610.61,608.87,0.30123136]
[1745571157775,1.19166238,610.6,608.87,0.30123136]
[1745571157976,1.19166238,610.6,608.88,0.30123136]
[1745571158275,1.19166238,610.6,608.89,0.30123136]
[1745571158476,1.19166238,610.6,608.87,0.30123136]
[1745571158771,1.19166238,610.6,608.88,0.30123136]
[1745571158977,1.19166238,610.6,608.86,0.28547756]
[1745571159179,1.19166238,610.6,608.87,0.30122935]
[1745571159476,1.19166238,610.59,608.87,0.30122935]
[1745571159777,1.19166238,610.58,608.87,0.30122935]
[1745571160076,1.19166238,610.57,608.88,1.178]
[1745571160276,1.19166238,610.57,608.89,0.30122935]
[1745571160677,1.19166238,610.56,608.89,0.30122935]
[1745571161178,1.19166238,610.55,608.89,0.30122935]
[1745571161578,1.19166238,610.54,608.89,0.30122935]
[1745571162679,1.19166238,610.53,608.89,0.30122935]
[1745571163177,1.19166238,610.52,608.89,0.30122935]
[1745571163675,1.19166238,610.51,608.89,0.30122935]
[1745571163979,1.19166238,610.5,608.89,0.30122935]
[1745571164182,1.19166238,610.5,608.9,0.935]
[1745571164379,1.19166238,610.5,608.91,0.30122935]
[1745571164576,1.19166238,610.49,608.91,0.30122935]
[1745571164878,1.19166238,610.48,608.91,0.30122935]
[1745571165579,1.19166238,610.48,609.11,1.04222854]
[1745571165779,1.19166238,610.48,609.12,0.30122935]
[1745571166078,1.19166238,610.47,609.12,0.30122935]
[1745571167380,1.19166238,610.46,609.12,0.30122935]
[1745571167880,0.28543424,610.78,609.12,0.30122935]
[1745571167881,1.19166238,610.45,609.12,0.30122935]
[1745571168081,1.19166238,610.45,609.05,0.30122935]
[1745571168279,1.19166238,610.45,609.06,0.30122935]
[1745571168580,1.19166238,610.44,609.07,0.30122935]
[1745571168774,1.19166238,610.44,609.08,0.30122935]
[1745571168977,1.19166238,610.43,609.09,0.30122935]
[1745571169181,1.19166238,610.43,609.1,0.30122935]
[1745571169381,1.19166238,610.42,609.11,0.30122935]
[1745571169680,1.19166238,610.42,609.12,0.30122935]
[1745571169883,1.19166238,610.42,609.05,0.30122935]
[1745571170085,1.19166238,610.42,609.06,0.30122935]
[1745571170584,1.19166238,610.41,609.06,0.30122935]
[1745571170985,1.19166238,610.4,609.06,0.30122935]
[1745571171485,1.19166238,610.4,609.05,1.04222854]
[1745571171690,1.19166238,610.39,609.06,0.30119102]
[1745571172191,1.19166238,610.39,609.14,1.04222854]
[1745571172387,1.19166238,610.39,609.15,0.30119102]
[1745571172584,1.19166238,610.38,609.15,0.30119102]
[1745571173390,1.19166238,610.37,609.15,0.30119102]
[1745571173786,1.19166238,610.36,609.15,0.30119102]
[1745571174495,1.19166238,610.35,609.19,1.04222854]
[1745571174694,1.19166238,610.35,609.2,0.30119102]
[1745571174893,1.19166238,610.34,609.2,0.30119102]
[1745571175689,1.19166238,610.33,609.2,0.30119102]
[1745571176094,1.19166238,610.33,609.19,1.04222854]
[1745571176289,1.19166238,610.33,609.2,0.30118878]
[1745571176492,1.19166238,610.32,609.2,0.30118878]
[1745571176793,1.19166238,610.31,609.2,0.30118878]
[1745571176995,0.28544829,610.78,609.2,0.30118878]
[1745571176996,1.19166238,610.3,609.2,0.30118878]
[1745571177293,1.19166238,610.3,609.21,0.30118878]
[1745571177496,1.19166238,610.29,609.14,0.30118878]
[1745571177688,1.19166238,610.29,609.15,0.30118827]
[1745571177892,1.19166238,610.29,609.16,0.30118827]
[1745571178193,1.19166238,610.28,609.17,0.30118827]
[1745571178390,1.19166238,610.28,609.14,0.30118827]
[1745571178593,1.19166238,610.27,609.15,0.30118827]
[1745571178890,1.19166238,610.27,609.13,1.04222854]
[1745571178891,1.19166238,610.27,609.16,0.30118827]
[1745571179197,1.19166238,610.26,609.15,1.04222854]
[1745571179395,1.19166238,610.25,609.16,0.30117787]
[1745571179698,1.19166238,610.24,609.16,0.30117787]
[1745571180294,1.19166238,610.23,609.16,0.30117787]
[1745571180799,1.19166238,610.22,609.16,0.30117787]
[1745571181392,1.19166238,610.22,609.1,0.30117787]
[1745571181592,1.19166238,610.21,609.11,0.30117787]
[1745571181798,1.19166238,610.2,609.1,0.30117787]
[1745571182100,1.19166238,610.2,609.11,0.30117787]
[1745571182293,1.19166238,610.2,609.12,0.30117787]
[1745571182492,1.19166238,610.2,609.1,0.30117787]
[1745571182699,1.19166238,610.2,609.11,0.30117787]
[1745571182999,1.19166238,610.19,609.12,0.30117787]
[1745571183299,1.19166238,610.19,609.13,0.30117787]
[1745571183498,1.19166238,610.18,609.1,0.30117787]
[1745571183693,1.19166238,610.18,609.11,0.30117787]
[1745571183893,1.19166238,610.17,609.09,1.32769556]
[1745571184093,1.19166238,610.17,609.12,0.963]
[1745571184300,1.19166238,610.17,609.12,2.00522854]
[1745571184699,1.19166238,610.16,609.12,2.00522854]
[1745571184902,1.19166238,610.16,609.13,0.3011781]
[1745571185600,1.19166238,610.15,609.13,0.3011781]
[1745571185999,1.19166238,610.14,609.13,0.3011781]
[1745571186396,1.19166238,610.13,609.13,0.3011781]
[1745571186901,1.19166238,610.13,609.14,0.30117477]
[1745571187099,0.28546702,610.78,609.14,0.30117477]
[1745571187100,1.19166238,610.12,609.14,0.30117477]
[1745571187401,0.28546702,610.78,609.14,0.30117477]
[1745571187402,1.19166238,610.11,609.14,0.30117477]
[1745571187901,1.19166238,610.1,609.14,0.30117477]
[1745571188103,1.19166238,610.1,609.27,1.04222854]
[1745571188401,1.19166238,610.09,609.28,0.30117477]
[1745571188895,1.19166238,610.08,609.28,0.30117477]
[1745571189096,1.19166238,610.08,609.27,1.04222854]
[1745571189702,1.19166238,610.07,609.27,1.04222854]
[1745571190203,1.19166238,610.06,609.27,1.04222854]
[1745571190703,1.19166238,610.05,609.27,1.04222854]
[1745571191203,1.19166238,610.05,609.22,1.265]
[1745571191204,1.19166238,610.04,609.22,1.265]
[1745571192102,1.19166238,610.03,609.22,1.265]
[1745571192702,1.19166238,610.02,609.22,1.265]
[1745571192903,1.19166238,610.02,609.22,2.30722854]
[1745571193603,1.19166238,610.01,609.22,2.30722854]
[1745571194099,1.19166238,610.0,609.23,0.30117675]
[1745571194604,1.19166238,609.99,609.23,0.30117675]
[1745571195203,1.19166238,609.99,609.27,1.04222854]
[1745571195400,1.19166238,609.99,609.28,0.30117675]
[1745571195605,1.19166238,609.98,609.28,0.30117675]
[1745571196106,1.19166238,609.97,609.28,0.30117675]
[1745571196705,1.19166238,609.96,609.28,0.30117675]
[1745571197406,1.19166238,609.95,609.28,0.30117675]
[1745571198007,1.19166238,609.95,609.23,0.30117675]
[1745571198207,1.19166238,609.94,609.23,0.30117675]
[1745571198507,1.19166238,609.93,609.23,0.30117675]
[1745571199306,1.19166238,609.92,609.23,0.30117675]
[1745571199707,1.19166238,609.91,609.23,0.30117675]
[1745571200506,1.19166238,609.9,609.23,0.30117675]
[1745571200907,1.19166238,609.89,609.22,1.265]
[1745571201406,1.19166238,609.88,609.22,1.265]
[1745571201706,1.19166238,609.87,609.22,1.265]
[1745571202707,1.19166238,609.86,609.27,1.04222854]
[1745571203405,1.19166238,609.85,609.27,1.04222854]
[1745571204108,1.19166238,609.84,609.27,1.04222854]
[1745571204608,1.19166238,609.84,609.3,1.04222854]
[1745571204908,1.19166238,609.83,609.3,1.04222854]
[1745571205807,1.19166238,609.82,609.3,1.04222854]
[1745571206508,1.19166238,609.81,609.3,1.04222854]
[1745571206704,1.19166238,609.8,609.3,1.04222854]
[1745571207106,1.19166238,609.8,609.24,1.04222854]
[1745571207509,1.19166238,609.79,609.24,1.04222854]
[1745571208310,1.19166238,609.78,609.24,1.04222854]
[1745571208706,0.28547522,610.83,609.24,1.04222854]
[1745571208707,1.19166238,609.77,609.24,1.04222854]
[1745571209306,1.19166238,609.76,609.24,1.04222854]
[1745571209809,1.19166238,609.76,609.22,1.55047522]
[1745571209810,1.19166238,609.76,609.28,1.04222854]
[1745571210003,1.19166238,609.75,609.28,1.04222854]
[1745571211510,1.19166238,609.74,609.28,1.04222854]
[1745571211807,0.28547522,610.83,609.28,1.04222854]
[1745571211808,1.19166238,609.73,609.28,1.04222854]
[1745571212006,1.19166238,609.73,609.22,1.265]
[1745571212007,1.19166238,609.73,609.25,1.04222854]
[1745571212509,1.19166238,609.72,609.29,0.30114392]
[1745571213006,1.19166238,609.71,609.29,0.30114392]
[1745571213709,1.19166238,609.7,609.29,0.30114392]
[1745571213907,2.13310576,612.08,609.3,0.30114374]
[1745571214108,1.18918469,612.07,609.3,0.30114374]
[1745571214310,1.18918469,612.06,609.3,0.30114374]
[1745571214509,1.18918469,612.05,609.3,0.30114374]
[1745571214811,2.13310576,611.99,609.3,0.30114374]
[1745571215314,1.18918469,611.98,609.3,0.30114374]
[1745571215612,1.18918469,611.97,609.3,0.30114374]
[1745571215810,1.18918469,611.96,609.3,1.51214374]
[1745571216011,1.18918469,611.96,609.31,0.30114374]
[1745571216314,1.18918469,611.95,609.31,0.30114374]
[1745571216507,1.18918469,611.94,609.31,0.30114374]
[1745571216910,1.18918469,611.93,609.3,1.211]
[1745571217213,1.18918469,611.93,609.31,0.30112827]
[1745571217412,1.18918469,611.92,609.31,0.30112827]
[1745571217714,1.18918469,611.91,609.3,1.211]
[1745571218114,1.18918469,611.9,609.3,1.211]
[1745571218309,1.18918469,611.9,609.3,2.143]
[1745571218508,1.18918469,611.89,609.3,2.143]
[1745571218808,1.18918469,611.88,609.3,2.143]
[1745571219009,1.18918469,611.87,609.3,2.143]
[1745571219820,1.18918469,611.86,609.3,2.143]
[1745571220221,1.18918469,611.86,609.31,0.30110311]
[1745571220817,1.18918469,611.85,609.31,0.30110311]
[1745571221224,0.28521317,611.84,609.31,0.30110311]
[1745571221722,1.18918469,611.83,609.31,0.30110311]
[1745571221917,1.18918469,611.82,609.31,0.30110311]
[1745571222817,1.18918469,611.81,609.31,0.30110311]
[1745571223017,1.18918469,611.81,609.3,2.143]
[1745571223222,1.18918469,611.8,609.31,0.30110158]
[1745571224123,1.47440371,611.79,609.31,0.30110158]
[1745571224626,2.13310576,611.59,609.51,1.04222854]
[1745571224824,1.18918469,611.58,609.52,0.30110158]
[1745571225620,1.18918469,611.57,609.52,0.30110158]
[1745571225820,1.18918469,611.57,609.51,1.04222854]
[1745571226027,1.18918469,611.56,609.51,1.04222854]
[1745571226421,1.18918469,611.55,609.51,1.04222854]
[1745571227027,1.18918469,611.54,609.51,1.04222854]
[1745571227229,1.47440604,611.54,609.31,0.28522135]
[1745571227429,1.18918469,611.53,609.32,0.3010893]
[1745571227830,1.18918469,611.53,609.31,0.28522135]
[1745571228025,1.18918469,611.53,609.32,0.30108349]
[1745571228230,1.18918469,611.52,609.32,0.30108349]
[1745571228829,1.18918469,611.51,609.32,0.30108349]
[1745571229425,1.18918469,611.5,609.31,0.28522135]
[1745571229626,1.18918469,611.5,609.32,0.30106444]
[1745571229826,2.13310576,612.42,609.32,0.30106444]
[1745571229827,1.18918469,611.49,609.32,0.30106444]
[1745571230025,1.18918469,611.49,609.31,0.30106444]
[1745571230227,1.47443059,611.49,609.31,0.58631034]
[1745571230432,1.47443059,611.49,609.32,0.30106444]
[1745571230632,1.18918469,611.48,609.33,0.30106444]
[1745571230931,1.18918469,611.48,609.34,0.30106444]
[1745571231135,1.18918469,611.47,609.32,0.30106444]
[1745571231533,1.18918469,611.47,609.33,1.327]
[1745571231733,1.18918469,611.46,609.34,0.30106444]
[1745571232430,1.18918469,611.46,609.44,1.04222854]
[1745571232629,1.18918469,611.45,609.44,1.04222854]
[1745571232867,1.18918469,611.45,609.45,0.30106026]
[1745571233129,1.47442124,611.44,609.45,0.30106026]
[1745571233633,1.18918469,611.43,609.45,0.30106026]
[1745571234233,1.18918469,611.42,609.45,0.30106026]
[1745571234534,1.18918469,611.42,609.46,1.166]
[1745571234830,1.18918469,611.41,609.47,0.30106026]
[1745571235035,1.18918469,611.41,609.56,1.04222854]
[1745571235432,1.18918469,611.4,609.56,1.04222854]
[1745571236136,0.28523304,611.39,609.56,1.04222854]
[1745571236634,1.18918469,611.38,609.56,1.04222854]
[1745571237030,1.18918469,611.37,609.56,1.04222854]
[1745571237435,1.18918469,611.36,609.46,1.166]
[1745571238035,1.18918469,611.35,609.46,1.166]
[1745571238637,1.18918469,611.35,609.47,0.30106918]